[Event "FIDE Women World Rapid 2024"]
[Site "New York"]
[Date "2024.12.27"]
[Round "5.18"]
[White "Javakhishvili, Lela"]
[Black "Lyutsinger, Iren"]
[Result "1-0"]
[ECO "A08"]
[WhiteElo "2426"]
[BlackElo "2150"]
[Annotator "ChessBase"]
[PlyCount "85"]
[EventDate "2024.12.14"]
[EventType "swiss"]
[EventCountry "USA"]
[SourceTitle "playchess.com"]
[Source "ChessBase"]
[SourceQuality "1"]
[TimeControl "900+10"]

1. Nf3 {[%emt 0:00:02]} Nf6 {[%emt 0:00:01]} 2. b3 {[%emt 0:00:03]} d5 {[%emt 0:00:01]} 3. Bb2 {[%emt 0:00:02]} c5 {[%emt 0:00:01]} 4. g3 {[%emt 0:00:22]} Nc6 {[%emt 0:00:04]} 5. Bg2 {[%emt 0:00:02]} Qc7 {[%emt 0:00:00]} 6. O-O {[%emt 0:01:55]} e5 {[%emt 0:00:01]} 7. d3 {[%emt 0:00:02]} Bd6 {[%emt 0:04:45]} 8. Nc3 {[%emt 0:00:09]} a6 {[%emt 0:00:37]} 9. e4 {[%emt 0:00:02]} d4 {[%emt 0:01:19]} 10. Ne2 {[%emt 0:01:05]} b5 {[%emt 0:00:11]} 11. Nh4 {[%emt 0:00:13]} Rb8 {[%emt 0:02:25]} 12. Bc1 {[%emt 0:00:37]} c4 {[%emt 0:01:55]} 13. Nf5 {[%emt 0:00:14]} Bxf5 {[%emt 0:00:27]} 14. exf5 {[%emt 0:00:03]} Ne7 {[%emt 0:00:07]} 15. f4 {[%emt 0:01:06]} O-O {[%emt 0:00:39]} 16. Kh1 {[%emt 0:03:25]} Rfe8 {[%emt 0:00:34]} 17. fxe5 {[%emt 0:01:17]} Bxe5 {[%emt 0:00:01]} 18. Bg5 {[%emt 0:00:29]} Qd7 {[%emt 0:02:22]} 19. bxc4 {[%emt 0:01:56]} bxc4 {[%emt 0:00:09]} 20. dxc4 {[%emt 0:00:03]} Nxf5 {[%emt 0:00:40]} 21. Qd3 {[%emt 0:00:39]} Ne3 {[%emt 0:00:46]} 22. Bxf6 {[%emt 0:00:44]} Bxf6 {[%emt 0:00:32]} 23. Rf3 {[%emt 0:00:47]} Qc6 {[%emt 0:00:24]} 24. Rxe3 {[%emt 0:00:31]} Qxg2+ {[%emt 0:00:40]} 25. Kxg2 {[%emt 0:00:02]} Rxe3 {[%emt 0:00:01]} 26. Qd2 {[%emt 0:00:33]} Rbe8 {[%emt 0:00:28]} 27. Nxd4 {[%emt 0:00:17]} R3e4 {[%emt 0:00:01]} 28. c3 {[%emt 0:00:27]} Bxd4 {[%emt 0:00:02]} 29. cxd4 {[%emt 0:00:17]} Re2+ {[%emt 0:00:01]} 30. Qxe2 {[%emt 0:00:01]} Rxe2+ {[%emt 0:00:01]} 31. Kf3 {[%emt 0:00:02]} Rc2 {[%emt 0:00:47]} 32. c5 {[%emt 0:00:03]} Kf8 {[%emt 0:00:02]} 33. h4 {[%emt 0:00:18]} Ke7 {[%emt 0:00:03]} 34. Ke4 {[%emt 0:00:02]} Ke6 {[%emt 0:00:26]} 35. Rb1 {[%emt 0:00:20]} f5+ {[%emt 0:00:04]} 36. Kd3 {[%emt 0:00:03]} Rxa2 {[%emt 0:00:19]} 37. Rb6+ {[%emt 0:00:03]} Ke7 {[%emt 0:00:11]} 38. Rb7+ {[%emt 0:00:18]} Kf6 {[%emt 0:00:11]} 39. c6 {[%emt 0:00:13]} Ke6 {[%emt 0:00:02]} 40. d5+ {[%emt 0:00:45]} Kxd5 {[%emt 0:00:10]} 41. c7 {[%emt 0:00:03]} Ra3+ {[%emt 0:00:04]} 42. Kc2 {[%emt 0:00:05]} Ra2+ {[%emt 0:00:10]} 43. Kb1 {[%emt 0:00:05]} 1-0

[Event "FIDE Women World Rapid 2024"]
[Site "New York"]
[Date "2024.12.27"]
[Round "5.18"]
[White "Sukandar, Irine Kharisma"]
[Black "Fataliyeva, Ulviyya"]
[Result "1-0"]
[ECO "C50"]
[WhiteElo "2330"]
[BlackElo "2381"]
[Annotator "ChessBase"]
[PlyCount "79"]
[EventDate "2024.12.14"]
[EventType "swiss"]
[EventCountry "USA"]
[SourceTitle "playchess.com"]
[Source "ChessBase"]
[SourceQuality "1"]
[TimeControl "900+10"]

1. e4 {[%emt 0:00:04]} e5 {[%emt 0:00:10]} 2. Nf3 {[%emt 0:00:07]} Nc6 {[%emt 0:00:03]} 3. Bc4 {[%emt 0:00:05]} Nf6 {[%emt 0:00:02]} 4. d3 {[%emt 0:00:03]} Bc5 {[%emt 0:00:02]} 5. a4 {[%emt 0:00:24]} d6 {[%emt 0:00:14]} 6. O-O {[%emt 0:00:35]} O-O {[%emt 0:00:30]} 7. Be3 {[%emt 0:02:00]} Bxe3 {[%emt 0:00:50]} 8. fxe3 {[%emt 0:00:02]} Ne7 {[%emt 0:00:09]} 9. Nh4 {[%emt 0:00:49]} c6 {[%emt 0:00:36]} 10. Bb3 {[%emt 0:01:26]} d5 {[%emt 0:01:18]} 11. Nd2 {[%emt 0:00:16]} Ng4 {[%emt 0:04:58]} 12. Qf3 {[%emt 0:01:02]} f5 {[%emt 0:00:33]} 13. h3 {[%emt 0:01:43]} Nh6 {[%emt 0:00:02]} 14. Qg3 {[%emt 0:00:32]} Qc7 {[%emt 0:02:07]} 15. Rf2 {[%emt 0:03:41]} Bd7 {[%emt 0:01:42]} 16. Raf1 {[%emt 0:00:10]} Kh8 {[%emt 0:00:11]} 17. Qg5 {[%emt 0:00:56]} Neg8 {[%emt 0:01:48]} 18. exf5 {[%emt 0:00:28]} Nf6 {[%emt 0:00:01]} 19. e4 {[%emt 0:00:23]} Qb6 {[%emt 0:00:16]} 20. Nhf3 {[%emt 0:00:23]} Nf7 {[%emt 0:00:04]} 21. Qh4 {[%emt 0:00:08]} Rae8 {[%emt 0:00:24]} 22. Kh1 {[%emt 0:00:11]} Nd6 {[%emt 0:00:01]} 23. Re2 {[%emt 0:00:22]} Bxf5 {[%emt 0:01:22]} 24. exf5 {[%emt 0:01:09]} Nxf5 {[%emt 0:00:01]} 25. Qg5 {[%emt 0:00:04]} Nh5 {[%emt 0:00:05]} 26. Kh2 {[%emt 0:01:52]} Nhg3 {[%emt 0:00:07]} 27. Rfe1 {[%emt 0:00:07]} Nxe2 {[%emt 0:01:08]} 28. Rxe2 {[%emt 0:00:01]} Qc7 {[%emt 0:00:20]} 29. Kg1 {[%emt 0:00:02]} e4 {[%emt 0:00:21]} 30. dxe4 {[%emt 0:00:33]} Ng3 {[%emt 0:00:01]} 31. Re1 {[%emt 0:00:10]} dxe4 {[%emt 0:00:01]} 32. Nd4 {[%emt 0:00:18]} Qb6 {[%emt 0:00:43]} 33. Qe3 {[%emt 0:00:09]} Nh5 {[%emt 0:00:13]} 34. Ne6 {[%emt 0:00:08]} Qxe3+ {[%emt 0:00:03]} 35. Rxe3 {[%emt 0:00:01]} Rf6 {[%emt 0:00:04]} 36. Rxe4 {[%emt 0:00:07]} Ng3 {[%emt 0:00:06]} 37. Re5 {[%emt 0:00:12]} h6 {[%emt 0:00:09]} 38. Nf3 {[%emt 0:00:01]} Nf5 {[%emt 0:00:15]} 39. Re1 {[%emt 0:00:10]} Kh7 {[%emt 0:00:14]} 40. Neg5+ {[%emt 0:00:04]} 1-0

[Event "FIDE Women World Rapid 2024"]
[Site "New York"]
[Date "2024.12.27"]
[Round "5.19"]
[White "Kurmangaliyeva, Liya"]
[Black "Vantika Agrawal"]
[Result "0-1"]
[ECO "C18"]
[WhiteElo "2266"]
[BlackElo "2392"]
[Annotator "ChessBase"]
[PlyCount "148"]
[EventDate "2024.12.14"]
[EventType "swiss"]
[EventCountry "USA"]
[SourceTitle "playchess.com"]
[Source "ChessBase"]
[SourceQuality "1"]
[TimeControl "900+10"]

1. e4 {[%emt 0:00:06]} e6 {[%emt 0:00:12]} 2. d4 {[%emt 0:00:04]} d5 {[%emt 0:00:06]} 3. Nc3 {[%emt 0:00:04]} Bb4 {[%emt 0:00:09]} 4. e5 {[%emt 0:00:12]} c5 {[%emt 0:00:02]} 5. a3 {[%emt 0:00:07]} Bxc3+ {[%emt 0:00:04]} 6. bxc3 {[%emt 0:00:02]} Qc7 {[%emt 0:00:05]} 7. h4 {[%emt 0:00:20]} Ne7 {[%emt 0:00:28]} 8. Rh3 {[%emt 0:00:10]} b6 {[%emt 0:04:02]} 9. h5 {[%emt 0:02:22]} h6 {[%emt 0:01:38]} 10. a4 {[%emt 0:00:03]} Ba6 {[%emt 0:01:29]} 11. Bb5+ {[%emt 0:00:02]} Bxb5 {[%emt 0:01:22]} 12. axb5 {[%emt 0:00:02]} a5 {[%emt 0:02:12]} 13. Qg4 {[%emt 0:05:51]} Rg8 {[%emt 0:02:29]} 14. Ne2 {[%emt 0:01:33]} Nd7 {[%emt 0:00:19]} 15. Ba3 {[%emt 0:02:12]} O-O-O {[%emt 0:02:44]} 16. Rf3 {[%emt 0:00:34]} Nf5 {[%emt 0:00:13]} 17. Qf4 {[%emt 0:02:08]} g5 {[%emt 0:00:12]} 18. Qg4 {[%emt 0:00:28]} f6 {[%emt 0:00:07]} 19. Ng3 {[%emt 0:01:15]} Nh4 {[%emt 0:00:11]} 20. Qxe6 {[%emt 0:00:37]} Nxf3+ {[%emt 0:00:03]} 21. gxf3 {[%emt 0:00:19]} Rge8 {[%emt 0:00:19]} 22. Qxd5 {[%emt 0:00:00]} Nxe5 {[%emt 0:00:11]} 23. Qa8+ {[%emt 0:00:00]} Kd7 {[%emt 0:00:09]} 24. Qd5+ {[%emt 0:00:01]} Ke7 {[%emt 0:00:08]} 25. Qe4 {[%emt 0:00:25]} Kf8 {[%emt 0:00:09]} 26. Kf1 {[%emt 0:00:03]} Nc4 {[%emt 0:00:13]} 27. Qf5 {[%emt 0:00:11]} Qf7 {[%emt 0:00:11]} 28. dxc5 {[%emt 0:00:22]} Rd5 {[%emt 0:00:09]} 29. Qg4 {[%emt 0:00:07]} Nxa3 {[%emt 0:00:06]} 30. Rxa3 {[%emt 0:00:01]} f5 {[%emt 0:00:10]} 31. Qa4 {[%emt 0:00:20]} Rxc5 {[%emt 0:00:08]} 32. Kg2 {[%emt 0:00:01]} Rc4 {[%emt 0:00:14]} 33. Qb3 {[%emt 0:00:03]} g4 {[%emt 0:00:08]} 34. fxg4 {[%emt 0:00:16]} fxg4 {[%emt 0:00:06]} 35. Ra1 {[%emt 0:00:05]} Rf4 {[%emt 0:00:13]} 36. Qa3+ {[%emt 0:00:07]} Kg8 {[%emt 0:00:03]} 37. Rf1 {[%emt 0:00:04]} Rf8 {[%emt 0:00:03]} 38. Nh1 {[%emt 0:00:10]} Qd5+ {[%emt 0:00:04]} 39. Kg1 {[%emt 0:00:01]} a4 {[%emt 0:00:32]} 40. Qe7 {[%emt 0:00:27]} Qf7 {[%emt 0:00:05]} 41. Qd6 {[%emt 0:00:05]} Rf6 {[%emt 0:00:08]} 42. Qd4 {[%emt 0:00:07]} Qxh5 {[%emt 0:00:13]} 43. Qxa4 {[%emt 0:00:02]} Qg6 {[%emt 0:00:10]} 44. Qc4+ {[%emt 0:00:05]} Kh7 {[%emt 0:00:02]} 45. Re1 {[%emt 0:00:44]} g3 {[%emt 0:00:25]} 46. fxg3 {[%emt 0:00:20]} Qxc2 {[%emt 0:00:11]} 47. Qd4 {[%emt 0:00:10]} Qg6 {[%emt 0:00:09]} 48. Kg2 {[%emt 0:00:03]} R8f7 {[%emt 0:00:10]} 49. Re2 {[%emt 0:00:09]} Rd6 {[%emt 0:00:05]} 50. Qc4 {[%emt 0:00:03]} Qf5 {[%emt 0:00:14]} 51. Rf2 {[%emt 0:00:09]} Qd5+ {[%emt 0:00:09]} 52. Qxd5 {[%emt 0:00:05]} Rxf2+ {[%emt 0:00:03]} 53. Nxf2 {[%emt 0:00:13]} Rxd5 {[%emt 0:00:01]} 54. Kf3 {[%emt 0:00:13]} Rxb5 {[%emt 0:00:05]} 55. Ke3 {[%emt 0:00:04]} Kg6 {[%emt 0:00:04]} 56. Ne4 {[%emt 0:00:04]} h5 {[%emt 0:00:18]} 57. Kd4 {[%emt 0:00:02]} Rb1 {[%emt 0:00:14]} 58. Ke5 {[%emt 0:00:11]} Rf1 {[%emt 0:00:23]} 59. Ke6 {[%emt 0:00:38]} Rf8 {[%emt 0:00:08]} 60. Ke5 {[%emt 0:00:04]} Rf5+ {[%emt 0:00:11]} 61. Ke6 {[%emt 0:00:10]} Ra5 {[%emt 0:00:14]} 62. c4 {[%emt 0:00:10]} Ra4 {[%emt 0:00:09]} 63. Nd6 {[%emt 0:00:20]} Ra3 {[%emt 0:00:13]} 64. Ne4 {[%emt 0:00:02]} Ra5 {[%emt 0:00:09]} 65. Nd6 {[%emt 0:00:05]} Kg5 {[%emt 0:00:05]} 66. Kd7 {[%emt 0:00:07]} Kg4 {[%emt 0:00:10]} 67. Kc6 {[%emt 0:00:02]} Kxg3 {[%emt 0:00:06]} 68. Kxb6 {[%emt 0:00:01]} Ra1 {[%emt 0:00:10]} 69. c5 {[%emt 0:00:06]} Rb1+ {[%emt 0:00:08]} 70. Kc7 {[%emt 0:00:29]} Kf4 {[%emt 0:00:11]} 71. c6 {[%emt 0:00:28]} h4 {[%emt 0:00:01]} 72. Kd7 {[%emt 0:00:08]} Rc1 {[%emt 0:00:07]} 73. Nb5 {[%emt 0:00:06]} h3 {[%emt 0:00:09]} 74. Nd4 {[%emt 0:00:18]} Rd1 {[%emt 0:00:01]} 0-1

[Event "FIDE Women World Rapid 2024"]
[Site "New York"]
[Date "2024.12.27"]
[Round "5.19"]
[White "Melekhina, Alisa"]
[Black "Foisor, Sabina-Francesca"]
[Result "0-1"]
[ECO "B10"]
[WhiteElo "2176"]
[BlackElo "2222"]
[Annotator "ChessBase"]
[PlyCount "123"]
[EventDate "2024.12.14"]
[EventType "swiss"]
[EventCountry "USA"]
[SourceTitle "playchess.com"]
[Source "ChessBase"]
[SourceQuality "1"]
[TimeControl "900+10"]

1. e4 {[%emt 0:00:02]} c6 {[%emt 0:00:02]} 2. d3 {[%emt 0:00:04]} d5 {[%emt 0:00:05]} 3. Nd2 {[%emt 0:00:03]} g6 {[%emt 0:00:30]} 4. Ngf3 {[%emt 0:00:24]} Bg7 {[%emt 0:00:02]} 5. g3 {[%emt 0:00:04]} e5 {[%emt 0:01:32]} 6. Bg2 {[%emt 0:00:02]} Ne7 {[%emt 0:00:18]} 7. O-O {[%emt 0:00:04]} Qc7 {[%emt 0:00:59]} 8. b3 {[%emt 0:00:39]} d4 {[%emt 0:00:21]} 9. a4 {[%emt 0:00:32]} O-O {[%emt 0:00:34]} 10. Ba3 {[%emt 0:01:13]} c5 {[%emt 0:00:18]} 11. Nc4 {[%emt 0:00:21]} b6 {[%emt 0:00:32]} 12. Nh4 {[%emt 0:01:07]} Bb7 {[%emt 0:01:00]} 13. Bc1 {[%emt 0:01:30]} f5 {[%emt 0:01:13]} 14. f4 {[%emt 0:00:21]} fxe4 {[%emt 0:00:57]} 15. dxe4 {[%emt 0:01:50]} Nbc6 {[%emt 0:00:24]} 16. Qg4 {[%emt 0:02:26]} Kh8 {[%emt 0:02:04]} 17. f5 {[%emt 0:00:58]} gxf5 {[%emt 0:00:05]} 18. exf5 {[%emt 0:00:23]} Bf6 {[%emt 0:01:09]} 19. Bg5 {[%emt 0:00:59]} Ng8 {[%emt 0:00:11]} 20. Qh5 {[%emt 0:01:58]} Qf7 {[%emt 0:01:54]} 21. Bxf6+ {[%emt 0:01:07]} Nxf6 {[%emt 0:00:13]} 22. Qxf7 {[%emt 0:00:08]} Rxf7 {[%emt 0:00:05]} 23. Nd6 {[%emt 0:00:03]} Rd7 {[%emt 0:01:16]} 24. Nxb7 {[%emt 0:00:02]} e4 {[%emt 0:00:01]} 25. g4 {[%emt 0:01:30]} h6 {[%emt 0:00:17]} 26. Ng6+ {[%emt 0:00:06]} Kg7 {[%emt 0:00:01]} 27. h4 {[%emt 0:00:27]} Re8 {[%emt 0:00:56]} 28. Nf4 {[%emt 0:00:21]} Rxb7 {[%emt 0:00:52]} 29. g5 {[%emt 0:00:01]} hxg5 {[%emt 0:00:02]} 30. hxg5 {[%emt 0:00:02]} Ng4 {[%emt 0:00:59]} 31. Ne6+ {[%emt 0:00:06]} Rxe6 {[%emt 0:00:31]} 32. fxe6 {[%emt 0:00:03]} Re7 {[%emt 0:00:40]} 33. Bxe4 {[%emt 0:00:44]} Nd8 {[%emt 0:00:09]} 34. Rf4 {[%emt 0:00:41]} Ne3 {[%emt 0:00:06]} 35. Rh4 {[%emt 0:00:08]} Rxe6 {[%emt 0:00:06]} 36. Bd3 {[%emt 0:00:08]} Re5 {[%emt 0:00:05]} 37. g6 {[%emt 0:00:15]} Ne6 {[%emt 0:00:14]} 38. Kh2 {[%emt 0:00:06]} Ng5 {[%emt 0:00:06]} 39. Kg3 {[%emt 0:00:10]} Re8 {[%emt 0:00:22]} 40. Rah1 {[%emt 0:00:02]} Rf8 {[%emt 0:00:08]} 41. Rf4 {[%emt 0:00:08]} Re8 {[%emt 0:00:13]} 42. Rh5 {[%emt 0:00:05]} Re5 {[%emt 0:00:05]} 43. Rg4 {[%emt 0:00:35]} Ne4+ {[%emt 0:00:08]} 44. Rxe4 {[%emt 0:00:09]} Rxh5 {[%emt 0:00:02]} 45. Re7+ {[%emt 0:00:03]} Kf6 {[%emt 0:00:21]} 46. Rf7+ {[%emt 0:00:02]} Ke6 {[%emt 0:00:01]} 47. Rxa7 {[%emt 0:00:06]} Rg5+ {[%emt 0:00:06]} 48. Kh4 {[%emt 0:00:09]} Rg2 {[%emt 0:00:04]} 49. Rb7 {[%emt 0:00:20]} Ke5 {[%emt 0:00:21]} 50. Rxb6 {[%emt 0:00:15]} Nf5+ {[%emt 0:00:20]} 51. Bxf5 {[%emt 0:00:25]} Kxf5 {[%emt 0:00:01]} 52. Rc6 {[%emt 0:00:04]} Rxc2 {[%emt 0:00:07]} 53. g7 {[%emt 0:00:01]} Rg2 {[%emt 0:00:06]} 54. Rxc5+ {[%emt 0:00:02]} Kf4 {[%emt 0:00:02]} 55. Kh3 {[%emt 0:00:04]} Rxg7 {[%emt 0:00:01]} 56. b4 {[%emt 0:00:23]} d3 {[%emt 0:00:14]} 57. Rd5 {[%emt 0:00:03]} Ke3 {[%emt 0:00:09]} 58. a5 {[%emt 0:00:11]} d2 {[%emt 0:00:05]} 59. a6 {[%emt 0:00:17]} Rg1 {[%emt 0:00:35]} 60. b5 {[%emt 0:00:16]} Ra1 {[%emt 0:00:01]} 61. Kg4 {[%emt 0:00:10]} Ra5 {[%emt 0:00:21]} 62. Rd8 {[%emt 0:00:32]} 0-1

[Event "FIDE Women World Rapid 2024"]
[Site "New York"]
[Date "2024.12.27"]
[Round "5.20"]
[White "Song, Yuxin"]
[Black "Peycheva, Gergana"]
[Result "1/2-1/2"]
[ECO "B31"]
[WhiteElo "2384"]
[BlackElo "2212"]
[Annotator "ChessBase"]
[PlyCount "112"]
[EventDate "2024.12.14"]
[EventType "swiss"]
[EventCountry "USA"]
[SourceTitle "playchess.com"]
[Source "ChessBase"]
[SourceQuality "1"]
[TimeControl "900+10"]

1. e4 {[%emt 0:00:01]} c5 {[%emt 0:00:01]} 2. Nf3 {[%emt 0:00:02]} Nc6 {[%emt 0:00:02]} 3. Bb5 {[%emt 0:00:02]} g6 {[%emt 0:00:01]} 4. O-O {[%emt 0:00:02]} Bg7 {[%emt 0:00:02]} 5. Re1 {[%emt 0:00:01]} Nf6 {[%emt 0:00:02]} 6. c3 {[%emt 0:00:03]} O-O {[%emt 0:00:04]} 7. h3 {[%emt 0:00:01]} e5 {[%emt 0:01:52]} 8. d4 {[%emt 0:00:01]} cxd4 {[%emt 0:00:52]} 9. cxd4 {[%emt 0:00:01]} Nxd4 {[%emt 0:02:18]} 10. Nxd4 {[%emt 0:00:01]} exd4 {[%emt 0:00:01]} 11. Qxd4 {[%emt 0:00:04]} d5 {[%emt 0:01:32]} 12. e5 {[%emt 0:00:02]} Ne8 {[%emt 0:00:01]} 13. Nc3 {[%emt 0:03:19]} Nc7 {[%emt 0:00:05]} 14. Ba4 {[%emt 0:00:06]} Bd7 {[%emt 0:00:26]} 15. Bxd7 {[%emt 0:02:53]} Qxd7 {[%emt 0:00:02]} 16. Bf4 {[%emt 0:00:01]} Ne6 {[%emt 0:00:56]} 17. Qd2 {[%emt 0:00:29]} Nxf4 {[%emt 0:00:35]} 18. Qxf4 {[%emt 0:00:01]} Rad8 {[%emt 0:02:17]} 19. Rad1 {[%emt 0:00:04]} d4 {[%emt 0:00:34]} 20. Ne4 {[%emt 0:00:39]} Qc7 {[%emt 0:00:01]} 21. Ng5 {[%emt 0:01:00]} Bh6 {[%emt 0:00:48]} 22. h4 {[%emt 0:02:01]} d3 {[%emt 0:01:04]} 23. Qe3 {[%emt 0:01:14]} Rfe8 {[%emt 0:00:39]} 24. f4 {[%emt 0:00:22]} Bxg5 {[%emt 0:00:43]} 25. hxg5 {[%emt 0:00:01]} Qc4 {[%emt 0:00:14]} 26. b3 {[%emt 0:00:15]} Qb4 {[%emt 0:00:30]} 27. Rf1 {[%emt 0:00:36]} b6 {[%emt 0:00:41]} 28. Rxd3 {[%emt 0:00:15]} Rxd3 {[%emt 0:01:23]} 29. Qxd3 {[%emt 0:00:00]} Qa3 {[%emt 0:00:01]} 30. Qd7 {[%emt 0:00:16]} Re6 {[%emt 0:00:34]} 31. Qc8+ {[%emt 0:01:08]} Kg7 {[%emt 0:01:17]} 32. Rf2 {[%emt 0:00:28]} Qb4 {[%emt 0:00:10]} 33. Qc1 {[%emt 0:00:31]} Qd4 {[%emt 0:00:01]} 34. Qd2 {[%emt 0:00:12]} Qe4 {[%emt 0:00:22]} 35. Qe2 {[%emt 0:00:26]} Qd4 {[%emt 0:00:03]} 36. Qf3 {[%emt 0:00:09]} Re7 {[%emt 0:00:18]} 37. Qc6 {[%emt 0:00:42]} Re6 {[%emt 0:00:18]} 38. Qc2 {[%emt 0:00:02]} Re7 {[%emt 0:00:07]} 39. Kh2 {[%emt 0:00:28]} Rc7 {[%emt 0:00:18]} 40. Qd2 {[%emt 0:00:12]} Qe4 {[%emt 0:00:11]} 41. Re2 {[%emt 0:00:12]} Qf5 {[%emt 0:00:03]} 42. e6 {[%emt 0:00:21]} fxe6 {[%emt 0:00:14]} 43. Qd4+ {[%emt 0:00:01]} Kf7 {[%emt 0:00:01]} 44. g4 {[%emt 0:00:13]} Qxg4 {[%emt 0:00:29]} 45. Qf6+ {[%emt 0:00:01]} Ke8 {[%emt 0:00:01]} 46. Qh8+ {[%emt 0:00:42]} Kd7 {[%emt 0:00:14]} 47. Rd2+ {[%emt 0:00:53]} Kc6 {[%emt 0:00:05]} 48. Qa8+ {[%emt 0:00:34]} Kb5 {[%emt 0:00:00]} 49. Qe8+ {[%emt 0:00:04]} Ka6 {[%emt 0:00:22]} 50. Qa4+ {[%emt 0:00:02]} Kb7 {[%emt 0:00:01]} 51. Qe4+ {[%emt 0:00:01]} Ka6 {[%emt 0:00:25]} 52. b4 {[%emt 0:00:53]} Qh4+ {[%emt 0:00:06]} 53. Kg2 {[%emt 0:00:00]} Qg4+ {[%emt 0:00:01]} 54. Kh2 {[%emt 0:00:12]} Qh4+ {[%emt 0:00:01]} 55. Kg2 {[%emt 0:00:08]} Qg4+ {[%emt 0:00:00]} 56. Kf2 {[%emt 0:00:10]} Qh4+ {[%emt 0:00:13]} 1/2-1/2

[Event "FIDE Women World Rapid 2024"]
[Site "New York"]
[Date "2024.12.27"]
[Round "5.20"]
[White "Serikbay, Assel"]
[Black "Kulon, Klaudia"]
[Result "1-0"]
[ECO "E73"]
[WhiteElo "2236"]
[BlackElo "2391"]
[Annotator "ChessBase"]
[PlyCount "87"]
[EventDate "2024.12.14"]
[EventType "swiss"]
[EventCountry "USA"]
[SourceTitle "playchess.com"]
[Source "ChessBase"]
[SourceQuality "1"]
[TimeControl "900+10"]

1. d4 {[%emt 0:00:03]} Nf6 {[%emt 0:00:02]} 2. c4 {[%emt 0:00:01]} g6 {[%emt 0:00:01]} 3. Nc3 {[%emt 0:00:01]} Bg7 {[%emt 0:00:02]} 4. e4 {[%emt 0:00:02]} O-O {[%emt 0:00:03]} 5. Be2 {[%emt 0:00:11]} d6 {[%emt 0:00:05]} 6. Be3 {[%emt 0:00:04]} e5 {[%emt 0:00:14]} 7. d5 {[%emt 0:00:15]} c6 {[%emt 0:00:07]} 8. Qd2 {[%emt 0:00:51]} cxd5 {[%emt 0:00:08]} 9. cxd5 {[%emt 0:00:12]} Nbd7 {[%emt 0:00:24]} 10. Nf3 {[%emt 0:02:02]} Nc5 {[%emt 0:01:54]} 11. Qc2 {[%emt 0:01:43]} Qa5 {[%emt 0:00:26]} 12. O-O {[%emt 0:00:12]} Bd7 {[%emt 0:00:02]} 13. Nd2 {[%emt 0:04:05]} Qc7 {[%emt 0:02:05]} 14. Rac1 {[%emt 0:00:19]} Rfc8 {[%emt 0:00:14]} 15. Qb1 {[%emt 0:00:15]} a5 {[%emt 0:00:04]} 16. Nb5 {[%emt 0:00:26]} Qb8 {[%emt 0:00:12]} 17. f3 {[%emt 0:00:14]} Ne8 {[%emt 0:00:36]} 18. Rc2 {[%emt 0:00:31]} b6 {[%emt 0:00:40]} 19. Rfc1 {[%emt 0:00:06]} f5 {[%emt 0:00:10]} 20. b3 {[%emt 0:00:18]} Nf6 {[%emt 0:02:54]} 21. a3 {[%emt 0:00:19]} Bf8 {[%emt 0:00:30]} 22. b4 {[%emt 0:00:12]} axb4 {[%emt 0:00:01]} 23. axb4 {[%emt 0:00:01]} Na6 {[%emt 0:00:01]} 24. Rxc8 {[%emt 0:00:07]} Bxc8 {[%emt 0:00:02]} 25. Nc4 {[%emt 0:00:35]} f4 {[%emt 0:01:07]} 26. Nxb6 {[%emt 0:01:18]} Bd7 {[%emt 0:01:02]} 27. Nxa8 {[%emt 0:01:41]} fxe3 {[%emt 0:00:35]} 28. Nac7 {[%emt 0:00:02]} Qb6 {[%emt 0:00:17]} 29. Nxa6 {[%emt 0:01:23]} Bxb5 {[%emt 0:00:04]} 30. Bxb5 {[%emt 0:00:53]} Qxb5 {[%emt 0:00:01]} 31. Nc7 {[%emt 0:00:01]} Qb6 {[%emt 0:00:24]} 32. Ne6 {[%emt 0:00:02]} e2+ {[%emt 0:00:30]} 33. Kh1 {[%emt 0:00:02]} Bh6 {[%emt 0:00:03]} 34. Rc8+ {[%emt 0:00:50]} Kf7 {[%emt 0:00:01]} 35. Qe1 {[%emt 0:00:33]} Qa6 {[%emt 0:00:41]} 36. Rc7+ {[%emt 0:00:24]} Kg8 {[%emt 0:00:03]} 37. Rc2 {[%emt 0:00:01]} Be3 {[%emt 0:00:36]} 38. Rxe2 {[%emt 0:00:05]} Bb6 {[%emt 0:00:00]} 39. Rc2 {[%emt 0:00:13]} h5 {[%emt 0:00:52]} 40. Qc1 {[%emt 0:00:02]} Ne8 {[%emt 0:01:13]} 41. h4 {[%emt 0:00:38]} Kf7 {[%emt 0:00:05]} 42. Kh2 {[%emt 0:00:03]} Qd3 {[%emt 0:00:08]} 43. Qh6 {[%emt 0:00:15]} Qxc2 {[%emt 0:01:01]} 44. Qf8# {[%emt 0:00:02]} 1-0

[Event "FIDE Women World Rapid 2024"]
[Site "New York"]
[Date "2024.12.27"]
[Round "5.21"]
[White "Zhu, Chen"]
[Black "Sliwicka, Alicja"]
[Result "1-0"]
[ECO "D37"]
[WhiteElo "2423"]
[BlackElo "2346"]
[Annotator "ChessBase"]
[PlyCount "99"]
[EventDate "2024.12.14"]
[EventType "swiss"]
[EventCountry "USA"]
[SourceTitle "playchess.com"]
[Source "ChessBase"]
[SourceQuality "1"]
[TimeControl "900+10"]

1. d4 {[%emt 0:00:01]} Nf6 {[%emt 0:00:01]} 2. c4 {[%emt 0:00:01]} e6 {[%emt 0:00:02]} 3. Nf3 {[%emt 0:00:03]} d5 {[%emt 0:00:02]} 4. e3 {[%emt 0:00:43]} a6 {[%emt 0:00:02]} 5. a3 {[%emt 0:00:11]} Nbd7 {[%emt 0:00:15]} 6. Nc3 {[%emt 0:00:05]} b6 {[%emt 0:00:30]} 7. b3 {[%emt 0:00:27]} Bb7 {[%emt 0:00:07]} 8. Bb2 {[%emt 0:00:02]} Bd6 {[%emt 0:00:05]} 9. Bd3 {[%emt 0:00:52]} O-O {[%emt 0:00:03]} 10. cxd5 {[%emt 0:00:37]} exd5 {[%emt 0:00:07]} 11. Ne2 {[%emt 0:01:20]} Ne4 {[%emt 0:01:11]} 12. Ng3 {[%emt 0:00:07]} f5 {[%emt 0:00:13]} 13. Ne5 {[%emt 0:01:35]} Bxe5 {[%emt 0:02:15]} 14. dxe5 {[%emt 0:00:02]} Qh4 {[%emt 0:01:43]} 15. Qh5 {[%emt 0:02:09]} Qxh5 {[%emt 0:00:14]} 16. Nxh5 {[%emt 0:00:02]} Rae8 {[%emt 0:00:31]} 17. f4 {[%emt 0:01:26]} Ndc5 {[%emt 0:00:50]} 18. Bc2 {[%emt 0:00:04]} Re6 {[%emt 0:00:03]} 19. b4 {[%emt 0:03:02]} Nd7 {[%emt 0:00:01]} 20. Ng3 {[%emt 0:00:01]} Nxg3 {[%emt 0:01:42]} 21. hxg3 {[%emt 0:00:02]} g6 {[%emt 0:00:02]} 22. Rc1 {[%emt 0:02:14]} Rc8 {[%emt 0:00:30]} 23. g4 {[%emt 0:00:50]} fxg4 {[%emt 0:00:45]} 24. Rh4 {[%emt 0:00:23]} Rf8 {[%emt 0:03:04]} 25. Rxg4 {[%emt 0:00:06]} Bc8 {[%emt 0:00:00]} 26. Bb3 {[%emt 0:00:34]} Nf6 {[%emt 0:01:23]} 27. Rg3 {[%emt 0:00:35]} Nh5 {[%emt 0:00:21]} 28. Rf3 {[%emt 0:00:17]} c6 {[%emt 0:00:06]} 29. Bd4 {[%emt 0:00:24]} b5 {[%emt 0:00:14]} 30. g4 {[%emt 0:00:15]} Ng7 {[%emt 0:00:01]} 31. Rf2 {[%emt 0:00:32]} Bd7 {[%emt 0:00:04]} 32. Rfc2 {[%emt 0:00:02]} Rd8 {[%emt 0:00:51]} 33. Rg2 {[%emt 0:00:39]} Kf8 {[%emt 0:00:05]} 34. Kd2 {[%emt 0:00:11]} Ra8 {[%emt 0:00:06]} 35. Rf1 {[%emt 0:00:18]} Ree8 {[%emt 0:01:15]} 36. f5 {[%emt 0:00:00]} gxf5 {[%emt 0:00:11]} 37. gxf5 {[%emt 0:00:02]} Nxf5 {[%emt 0:00:18]} 38. Bc2 {[%emt 0:00:18]} Ke7 {[%emt 0:00:23]} 39. Bxf5 {[%emt 0:00:02]} Bxf5 {[%emt 0:00:03]} 40. Rxf5 {[%emt 0:00:03]} Rg8 {[%emt 0:00:01]} 41. Rxg8 {[%emt 0:00:14]} Rxg8 {[%emt 0:00:02]} 42. Rh5 {[%emt 0:00:03]} Rg2+ {[%emt 0:00:04]} 43. Kc3 {[%emt 0:00:05]} Rg7 {[%emt 0:00:26]} 44. Rh6 {[%emt 0:00:05]} Rg1 {[%emt 0:00:05]} 45. Rxh7+ {[%emt 0:00:04]} Ke6 {[%emt 0:00:01]} 46. Ra7 {[%emt 0:00:14]} Rc1+ {[%emt 0:00:32]} 47. Kd2 {[%emt 0:00:02]} Rb1 {[%emt 0:00:11]} 48. Rxa6 {[%emt 0:00:05]} Kf5 {[%emt 0:00:18]} 49. Rxc6 {[%emt 0:00:02]} Ke4 {[%emt 0:00:08]} 50. e6 {[%emt 0:00:39]} 1-0